bitfinex-derivatives/quotes_SOLF0:USTF0_20241120
["timestamp","ask_amount","ask_price","bid_price","bid_amount"]
[1732116047550,0.57904,236.66,236.43,2.2119]
[1732116047551,19.76474001,236.65,236.43,2.2119]
[1732116048546,2.1111,236.59,236.43,2.2119]
[1732116048745,19.76474001,236.65,236.43,2.2119]
[1732116049545,2.1114,236.56,236.43,2.2119]
[1732116050547,19.76474001,236.61,236.43,2.2119]
[1732116051650,2.1128,236.4,236.28,19.76474001]
[1732116051852,19.76474001,236.49,236.29,6.6382]
[1732116053049,19.76474001,236.45,236.29,6.6382]
[1732116053252,2.1131,236.37,236.29,6.6382]
[1732116053553,2.1131,236.37,236.29,4.3579]
[1732116053852,19.76474001,236.45,236.29,4.3579]
[1732116054261,2.1135,236.32,236.11,2.16391672]
[1732116054555,19.76474001,236.37,236.17,6.6988]
[1732116054852,2.1138,236.29,236.17,6.6988]
[1732116055052,19.76474001,236.37,236.17,4.4309]
[1732116055248,19.76474001,236.37,236.17,6.6988]
[1732116055847,32.43474001,236.37,236.11,2.16391672]
[1732116056148,32.43474001,236.37,236.11,19.76474001]
[1732116056149,19.76474001,236.33,236.11,19.76474001]
[1732116056557,19.76474001,236.37,236.05,2.06094211]
[1732116056558,2.1143,236.23,236.07,19.76474001]
[1732116057146,2.1141,236.26,236.07,19.76474001]
[1732116057352,19.76474001,236.29,236.07,19.76474001]
[1732116058053,19.76474001,236.24,235.96,5.82927155]
[1732116058253,19.76474001,236.24,235.99,19.76474001]
[1732116058459,2.2428,236.23,235.99,19.76474001]
[1732116058755,2.1151,236.14,235.99,19.76474001]
[1732116059055,2.2428,236.23,235.99,19.76474001]
[1732116059249,2.1146,236.2,235.99,19.76474001]
[1732116059449,2.2428,236.23,236.07,19.76474001]
[1732116059647,19.76474001,236.28,236.08,2.1857]
[1732116059850,19.76474001,236.28,236.08,4.2884]
[1732116060047,19.76474001,236.28,236.09,2.2658]
[1732116060954,2.2428,236.35,235.96,5.82927155]
[1732116060955,19.76474001,236.24,235.96,5.82927155]
[1732116061255,19.76474001,236.24,236.05,19.76474001]
[1732116061449,19.76474001,236.28,236.05,19.76474001]
[1732116061652,2.116,236.05,235.89,19.76474001]
[1732116061854,19.76474001,236.16,235.97,2.07638893]
[1732116062054,19.76474001,236.11,235.97,2.07638893]
[1732116062253,19.76474001,236.07,235.9,6.4761]
[1732116062958,19.76474001,236.12,235.9,6.4761]
[1732116063157,19.76474001,236.08,235.9,6.4761]
[1732116064251,19.76474001,236.0,235.78,19.76474001]
[1732116064457,19.76474001,236.0,235.73,2.16627132]
[1732116064458,19.76474001,236.04,235.82,19.76474001]
[1732116064653,19.76474001,236.08,235.86,19.76474001]
[1732116064860,2.1158,236.07,235.87,2.1946]
[1732116065056,19.76474001,236.12,235.9,19.76474001]
[1732116065753,19.76474001,236.16,235.94,19.76474001]
[1732116066053,19.76474001,236.2,235.98,19.76474001]
[1732116066562,19.76474001,236.16,235.95,2.2823]
[1732116066757,19.76474001,236.2,235.95,2.2823]
[1732116066959,19.76474001,236.2,236.01,19.76474001]
[1732116067257,21.87904001,236.24,236.02,4.3307]
[1732116067861,19.76474001,236.28,236.05,19.76474001]
[1732116068057,19.76474001,236.28,236.02,4.3307]
[1732116068058,19.76474001,236.28,236.09,19.76474001]
[1732116068253,19.76474001,236.32,236.1,2.1271]
[1732116068458,19.76474001,236.32,236.13,19.76474001]
[1732116068652,19.76474001,236.28,236.02,4.3307]
[1732116068856,19.76474001,236.28,236.06,19.76474001]
[1732116069056,19.76474001,236.28,236.06,21.89916918]
[1732116069853,19.76474001,236.32,236.1,19.76474001]
[1732116070063,19.76474001,236.36,236.14,19.76474001]
[1732116070558,19.76474001,236.4,236.18,19.76474001]
[1732116070761,19.76474001,236.4,236.19,6.438]
[1732116071059,19.76474001,236.4,236.2,2.07760716]
[1732116071459,19.76474001,236.28,235.84,5.75890782]
[1732116071661,19.76474001,236.27,236.07,2.1814]
[1732116071967,19.76474001,236.23,235.95,2.2887]
[1732116072264,19.76474001,236.23,235.98,19.76474001]
[1732116072458,21.87944001,236.19,235.96,4.2629]
[1732116072663,19.76474001,236.19,235.96,4.2629]
[1732116072963,19.76474001,236.28,235.96,4.2629]
[1732116072964,19.76474001,236.15,235.96,4.2629]
[1732116073859,19.76474001,236.15,235.96,6.41911585]
[1732116074063,19.76474001,236.19,235.96,6.41911585]
[1732116075261,32.20110491,236.21,235.99,32.20110491]
[1732116075459,32.20110491,236.21,236.03,32.20110491]
[1732116075659,34.28674352,236.4,236.07,32.20110491]
[1732116075660,32.20110491,236.29,236.07,32.20110491]
[1732116075859,32.20110491,236.33,236.11,32.20110491]
[1732116076160,32.20110491,236.29,236.12,6.5314]
[1732116076360,34.31490491,236.29,236.12,6.5314]
[1732116076664,32.20110491,236.29,236.12,6.5314]
[1732116076961,32.20110491,236.4,236.15,32.20110491]
[1732116077165,32.20110491,236.4,236.19,32.20110491]
[1732116077765,32.20110491,236.4,236.16,32.20110491]
[1732116077766,32.20110491,236.44,236.23,32.20110491]
[1732116077966,32.20110491,236.44,236.23,34.29827781]
[1732116078162,32.20110491,236.52,236.23,34.29827781]
[1732116078163,32.20110491,236.76,236.23,34.29827781]
[1732116078363,32.20110491,236.48,236.27,32.20110491]
[1732116078565,32.20110491,236.48,236.28,6.708]
[1732116078868,32.20110491,236.52,236.31,32.20110491]
[1732116079563,32.20110491,236.56,236.35,32.20110491]
[1732116080164,32.20110491,236.48,236.28,6.708]
[1732116080364,32.20110491,236.52,236.31,32.20110491]
[1732116081367,33.01276491,236.52,236.31,32.20110491]
[1732116081958,32.20110491,236.48,236.28,6.708]
[1732116082158,33.01276491,236.52,236.31,32.20110491]
[1732116082560,33.01276491,236.52,236.28,6.708]
[1732116082760,32.20110491,236.48,236.28,6.708]
[1732116083461,32.20110491,236.4,236.28,6.708]
[1732116083663,32.20110491,236.44,236.28,6.708]
[1732116083867,32.20110491,236.48,236.28,6.708]
[1732116084171,33.01276491,236.52,236.31,32.20110491]
[1732116084366,0.81166,236.52,236.35,32.20110491]
[1732116087071,0.81166,236.52,236.32,2.08695494]
[1732116087072,0.81166,236.52,236.43,32.20110491]
[1732116087267,0.81166,236.52,236.44,2.1019]
[1732116088569,0.81166,236.52,236.41,2.0657]
[1732116089875,0.81166,236.52,236.35,32.20110491]
[1732116092179,0.81166,236.52,236.39,32.20110491]
[1732116093574,32.20110491,236.64,236.43,32.20110491]
[1732116093776,32.20110491,236.64,236.44,4.2105]
[1732116094574,32.20110491,236.64,236.45,2.11371591]
[1732116094776,32.20110491,236.64,236.47,32.20110491]
[1732116094981,32.20110491,236.64,236.44,4.2105]
[1732116095284,32.20110491,236.6,236.44,4.2105]
[1732116095584,32.20110491,236.56,236.44,4.2105]
[1732116095786,32.20110491,236.6,236.44,2.1222]
[1732116097883,32.20110491,236.56,236.41,2.293]
[1732116098189,32.20110491,236.56,236.35,32.20110491]
[1732116098190,32.20110491,236.52,236.33,2.1634879]
[1732116098384,32.20110491,236.52,236.31,32.20110491]
[1732116098585,32.20110491,236.56,236.35,32.20110491]
[1732116098781,32.20110491,236.56,236.36,2.07521675]
[1732116099696,32.20110491,236.52,236.31,32.20110491]
[1732116101086,32.20110491,236.48,236.3,2.2367]
[1732116101391,2.1122,236.47,236.31,32.20110491]
[1732116101589,32.20110491,236.48,236.31,32.20110491]
[1732116101794,2.1121,236.48,236.31,32.20110491]
[1732116101990,32.20110491,236.52,236.31,32.20110491]
[1732116102392,2.1123,236.46,236.31,32.20110491]
[1732116102693,32.20110491,236.48,236.3,2.2367]
[1732116102991,2.1125,236.43,236.3,2.2367]
[1732116103197,32.20110491,236.48,236.3,2.2367]
[1732116103893,32.20110491,236.44,236.29,2.1665]
[1732116104798,32.20110491,236.44,236.23,34.31220491]
[1732116105095,32.20110491,236.44,236.23,36.60510491]
[1732116105692,32.20110491,236.48,236.28,32.20110491]
[1732116106293,2.1124,236.44,236.28,32.20110491]
[1732116106993,2.1126,236.43,236.28,32.20110491]
[1732116107494,2.1128,236.41,236.24,32.20110491]
[1732116107693,32.20110491,236.44,236.24,32.20110491]
[1732116107994,2.1127,236.41,236.24,32.20110491]
[1732116108386,2.1127,236.41,236.23,4.404]
[1732116108387,32.20110491,236.48,236.28,32.20110491]
[1732116108690,2.1125,236.43,236.28,32.20110491]
[1732116108997,32.20110491,236.48,236.28,32.20110491]
[1732116109495,2.1124,236.45,236.28,32.20110491]
[1732116109691,32.20110491,236.48,236.28,32.20110491]
[1732116110488,2.1124,236.44,236.28,32.20110491]
[1732116110689,32.20110491,236.48,236.28,32.20110491]
[1732116110889,32.20110491,236.48,236.24,32.20110491]
[1732116111096,32.20110491,236.52,236.28,32.20110491]
[1732116111290,32.20110491,236.52,236.32,32.20110491]
[1732116111494,32.20110491,236.52,236.33,2.15296564]
[1732116111695,2.1124,236.45,236.32,32.20110491]
[1732116111895,32.20110491,236.52,236.32,32.20110491]
[1732116112098,2.1124,236.45,236.32,32.20110491]
[1732116112593,32.20110491,236.52,236.32,32.20110491]
[1732116112594,2.1123,236.46,236.32,32.20110491]
[1732116112800,19.7671161,236.5,236.3,19.7671161]
[1732116113897,19.7671161,236.5,236.23,4.404]
[1732116113898,19.7671161,236.46,236.26,19.7671161]
[1732116114396,2.1126,236.43,236.26,19.7671161]
[1732116114598,19.7671161,236.46,236.26,19.7671161]
[1732116114900,2.1127,236.42,236.26,19.7671161]
[1732116115401,19.7671161,236.46,236.26,19.7671161]
[1732116115697,2.1127,236.41,236.26,19.7671161]
[1732116115895,19.7671161,236.38,236.23,4.404]
[1732116116500,2.1132,236.36,236.23,4.404]
[1732116116697,19.7671161,236.38,236.23,4.404]
[1732116117592,2.1132,236.35,236.23,4.404]
[1732116118301,19.7671161,236.38,236.23,4.404]
[1732116118693,19.7671161,236.38,236.11,5.76273341]
[1732116118694,2.114,236.27,236.08,5.76273341]
[1732116118898,19.7671161,236.34,236.12,4.2699]
[1732116119094,0.8219,236.37,236.12,6.42667354]
[1732116119294,0.8219,236.37,236.19,19.7671161]
[1732116119803,2.1136,236.32,236.19,19.7671161]
[1732116120094,0.8219,236.37,236.19,19.7671161]
[1732116120296,2.1127,236.41,236.27,19.7671161]
[1732116120495,232.90246439,236.73,236.27,19.7671161]
[1732116120496,0.64269,236.64,236.35,19.7671161]
[1732116120703,19.7671161,236.52,236.32,2.1871]
[1732116120897,2.1124,236.45,236.32,2.1871]
[1732116121302,19.7671161,236.56,236.35,19.7671161]
[1732116121597,19.7671161,236.52,236.32,2.1871]
[1732116121906,19.7671161,236.48,236.32,2.1871]
[1732116122401,19.7671161,236.44,236.28,4.3639]
[1732116122899,2.113,236.38,236.28,4.3639]
[1732116123094,19.7671161,236.44,236.28,4.3639]
[1732116123496,2.113,236.38,236.28,4.3639]
[1732116123698,19.7671161,236.4,236.28,4.3639]
[1732116123998,19.7671161,236.4,236.23,2.0946]
[1732116124297,19.7671161,236.36,236.17,6.4169]
[1732116124802,0.16612,236.39,236.17,6.4169]
[1732116124803,19.7671161,236.32,236.17,6.4169]
[1732116125403,0.16612,236.39,236.09,19.7671161]
[1732116125404,19.7671161,236.28,236.09,19.7671161]
[1732116125602,19.7671161,236.28,236.1,2.14285548]
[1732116125993,2.1143,236.24,236.1,2.14285548]
[1732116126198,19.7671161,236.28,236.1,2.14285548]
[1732116126600,19.7671161,236.28,236.09,19.7671161]
[1732116126794,19.7671161,236.28,236.1,2.13799352]
[1732116127196,19.7671161,236.36,236.17,19.7671161]
[1732116127399,2.1133,236.34,236.18,4.3266]
[1732116127597,0.16612,236.39,236.19,2.2547]
[1732116128008,0.16612,236.39,236.21,19.7671161]
[1732116128301,0.16612,236.39,236.25,19.7671161]
[1732116128503,0.16612,236.39,236.21,19.7671161]
[1732116128894,0.16612,236.39,236.25,19.7671161]
[1732116129401,0.16612,236.39,236.29,19.7671161]
[1732116129604,0.16612,236.39,236.25,19.7671161]
[1732116129794,0.16612,236.39,236.19,2.2547]
[1732116129795,0.16612,236.39,236.29,19.7671161]
[1732116130098,0.16612,236.39,236.3,4.39563659]
[1732116130399,0.16612,236.39,236.3,2.2834]
[1732116130698,0.16612,236.39,236.31,2.0957]
[1732116130899,32.2949209,236.39,236.19,32.1288009]
[1732116131201,0.16612,236.39,236.23,32.1288009]
[1732116131400,0.16612,236.39,236.2,4.3791]
[1732116131598,32.2949209,236.39,236.2,4.3791]
[1732116132105,32.2949209,236.39,236.2,6.53475451]
[1732116132301,0.16612,236.39,236.26,32.1288009]
[1732116132505,0.16612,236.39,236.2,6.53475451]
[1732116132798,2.1131,236.37,236.2,6.53475451]
[1732116133000,0.16612,236.39,236.2,6.53475451]
[1732116134099,2.1131,236.37,236.2,6.53475451]
[1732116134597,2.113,236.38,236.2,6.53475451]
[1732116135105,0.16612,236.39,236.2,6.53475451]
[1732116135106,0.16612,236.39,236.29,32.1288009]
[1732116135303,2.13612158,236.58,236.33,32.1288009]
[1732116135600,32.1288009,236.64,236.42,32.1288009]
[1732116135798,0.809,236.63,236.42,32.1288009]
[1732116136204,2.1113,236.55,236.42,32.1288009]
[1732116136404,2.1113,236.55,236.4,2.07320082]
[1732116136405,32.1288009,236.6,236.38,32.1288009]
[1732116136902,2.1115,236.52,236.38,32.1288009]
[1732116137404,32.1288009,236.6,236.42,32.1288009]
[1732116137601,0.809,236.63,236.42,32.1288009]
[1732116138004,2.1113,236.54,236.42,32.1288009]
[1732116138204,0.809,236.63,236.42,32.1288009]
[1732116138405,0.809,236.63,236.46,32.1288009]
[1732116138607,0.809,236.63,236.47,4.4107]
[1732116139308,2.1107,236.62,236.47,4.4107]
[1732116139511,32.1288009,236.68,236.47,4.4107]
[1732116139908,32.1288009,236.64,236.47,2.2499]
[1732116140104,32.1288009,236.6,236.47,2.2499]
[1732116140403,2.1114,236.54,236.47,2.2499]
[1732116140610,32.1288009,236.6,236.47,2.2499]
[1732116141309,32.1288009,236.56,236.38,2.199]
[1732116141504,32.1288009,236.51,236.38,2.199]
[1732116141701,2.1122,236.45,236.29,2.1145]
[1732116141906,2.1122,236.45,236.3,4.273]
[1732116142111,32.1288009,236.51,236.3,4.273]
[1732116142310,0.9691,236.55,236.34,32.1288009]
[1732116142311,33.0979009,236.55,236.34,32.1288009]
[1732116143114,32.1288009,236.51,236.3,4.273]
[1732116143609,2.1122,236.44,236.3,4.273]
[1732116143810,32.1288009,236.51,236.3,4.273]
[1732116144113,32.1288009,236.47,236.3,4.273]
[1732116145212,33.0979009,236.55,236.3,4.273]
[1732116145413,33.0979009,236.55,236.33,32.1288009]
[1732116145810,33.0979009,236.55,236.37,32.1288009]
[1732116146109,0.9691,236.55,236.37,32.1288009]
[1732116146317,32.1288009,236.59,236.37,32.1288009]
[1732116146708,2.1114,236.54,236.37,32.1288009]
[1732116146908,32.1288009,236.59,236.41,32.1288009]
[1732116147113,0.9696,236.62,236.42,4.4311]
[1732116147612,32.1288009,236.67,236.45,32.1288009]
[1732116148620,32.1288009,236.59,236.43,2.1448]
[1732116148823,32.1288009,236.64,236.43,2.1448]
[1732116149718,32.1288009,236.6,236.43,2.1448]
[1732116150720,32.1288009,236.56,236.43,2.1448]
[1732116151020,2.1121,236.45,236.33,0.46494]
[1732116151216,32.1288009,236.52,236.34,6.6645]
[1732116151719,2.1125,236.42,236.34,6.6645]
[1732116152415,0.9712,236.51,236.34,6.6645]
[1732116153118,32.1288009,236.56,236.36,32.1288009]
[1732116155219,32.1288009,236.56,236.34,6.6645]
[1732116156125,32.1288009,236.56,236.36,32.1288009]
[1732116156418,2.1117,236.5,236.36,32.1288009]
[1732116156814,32.1288009,236.56,236.36,32.1288009]
[1732116157015,2.1116,236.51,236.36,32.1288009]
[1732116157222,32.1288009,236.56,236.36,32.1288009]
[1732116157518,2.1117,236.5,236.36,32.1288009]
[1732116157713,32.1288009,236.6,236.4,32.1288009]
[1732116159123,2.1116,236.52,236.4,32.1288009]
[1732116160224,32.1288009,236.6,236.4,32.1288009]
[1732116160728,19.75151507,236.6,236.4,19.75151507]
[1732116161325,19.75151507,236.56,236.36,19.75151507]
[1732116161824,2.1119,236.48,236.36,19.75151507]
[1732116162728,19.75151507,236.56,236.36,19.75151507]
[1732116162729,2.1117,236.5,236.36,19.75151507]
[1732116163024,19.75151507,236.6,236.4,19.75151507]
[1732116163621,2.1114,236.54,236.44,19.75151507]
[1732116163830,2.1114,236.54,236.45,2.2636]
[1732116164131,19.75151507,236.68,236.48,19.75151507]
[1732116165023,0.9708,236.72,236.52,19.75151507]
[1732116165827,0.9708,236.72,236.56,19.75151507]
[1732116166026,0.9708,236.72,236.57,2.1789]
[1732116166527,0.9708,236.72,236.58,4.3679]
[1732116166925,32.05611166,236.75,236.58,4.3679]
[1732116167336,2.1103,236.66,236.58,4.3679]
[1732116167837,2.10155897,236.77,236.58,4.3679]
[1732116167838,32.05611166,236.71,236.58,4.3679]
[1732116168032,32.05611166,236.71,236.58,2.2235]
[1732116168231,32.05611166,236.67,236.51,2.156]
[1732116168437,2.111,236.58,236.51,4.4421]
[1732116168730,32.05611166,236.67,236.51,4.4421]
[1732116169130,2.111,236.58,236.51,4.4421]
[1732116169330,32.05611166,236.67,236.51,4.4421]
[1732116170738,32.05611166,236.63,236.51,4.4421]
[1732116171136,2.1109,236.59,236.51,4.4421]
[1732116171638,2.1111,236.57,236.51,4.4421]
[1732116172637,32.05611166,236.63,236.51,4.4421]
[1732116172838,2.111,236.58,236.51,4.4421]
[1732116175033,32.05611166,236.67,236.51,4.4421]
[1732116175438,2.1111,236.57,236.51,4.4421]
[1732116175737,32.05611166,236.63,236.51,4.4421]
[1732116176141,2.1108,236.6,236.51,4.4421]
[1732116176440,32.05611166,236.63,236.51,4.4421]
[1732116177037,2.1112,236.56,236.51,4.4421]
[1732116177744,2.1111,236.57,236.51,4.4421]
[1732116178037,32.05611166,236.63,236.51,4.4421]
[1732116178842,2.1111,236.57,236.51,4.4421]
[1732116179246,32.05611166,236.63,236.51,4.4421]
[1732116179544,32.05611166,236.67,236.51,4.4421]
[1732116179751,32.05611166,236.71,236.51,4.4421]
[1732116180241,32.05611166,236.67,236.51,4.4421]
[1732116180437,4.2192,236.74,236.51,4.4421]
[1732116180438,2.1112,236.56,236.51,4.4421]
[1732116180848,2.1109,236.59,236.51,4.4421]
[1732116181045,32.05611166,236.63,236.51,4.4421]
[1732116181243,0.9704,236.66,236.51,4.4421]
[1732116181440,32.05611166,236.63,236.51,4.4421]
[1732116181739,0.9704,236.66,236.51,4.4421]
[1732116181942,32.05611166,236.71,236.51,4.4421]
[1732116182444,2.1103,236.65,236.51,4.4421]
[1732116182743,32.05611166,236.71,236.51,4.4421]
[1732116182945,2.1103,236.65,236.51,4.4421]
[1732116183240,32.05611166,236.67,236.51,4.4421]
[1732116183445,2.1112,236.56,236.51,4.4421]
[1732116183743,32.05611166,236.63,236.51,4.4421]
[1732116184446,32.05611166,236.59,236.41,0.52118]
[1732116184650,32.05611166,236.59,236.42,2.276]
[1732116186149,0.9735,236.61,236.42,2.276]
[1732116186443,2.1114,236.53,236.42,2.276]
[1732116187042,20.72424134,236.61,236.42,2.276]
[1732116187239,2.1115,236.52,236.42,2.276]
[1732116187447,20.72424134,236.61,236.42,2.276]
[1732116187844,2.1118,236.49,236.42,2.276]
[1732116188938,20.72424134,236.61,236.42,2.276]
[1732116189142,0.9735,236.61,236.42,2.276]
[1732116189547,19.75074134,236.64,236.44,19.75074134]
[1732116189743,19.75074134,236.64,236.44,21.87298669]
[1732116189949,2.1106,236.63,236.48,19.75074134]
[1732116190350,19.75074134,236.68,236.48,21.86474948]
[1732116190648,2.1107,236.62,236.48,21.86474948]
[1732116191345,0.976,236.75,236.52,19.75074134]
[1732116191346,19.75074134,236.72,236.52,19.75074134]
[1732116191647,19.75074134,236.72,236.53,4.1843]
[1732116191949,0.976,236.75,236.56,19.75074134]
[1732116192144,19.75074134,236.76,236.56,19.75074134]
[1732116192449,19.75074134,236.8,236.56,19.75074134]
[1732116193042,2.1098,236.71,236.56,19.75074134]
[1732116193249,19.75074134,236.8,236.56,19.75074134]
[1732116193544,2.1098,236.71,236.56,19.75074134]
[1732116193842,2.1098,236.71,236.6,19.75074134]
[1732116194444,19.75074134,236.8,236.56,19.75074134]
[1732116194639,19.75074134,236.76,236.56,19.75074134]
[1732116195142,19.75074134,236.72,236.54,2.2807]
[1732116195344,19.75074134,236.68,236.54,2.2807]
[1732116195545,2.1106,236.63,236.54,2.2807]
[1732116195745,19.75074134,236.68,236.54,2.2807]
[1732116195947,2.1108,236.6,236.54,2.2807]
[1732116196141,19.75074134,236.68,236.54,2.2807]
[1732116196342,19.75074134,236.64,236.44,19.75074134]
[1732116196540,19.75074134,236.64,236.45,2.1754]
[1732116196741,19.75074134,236.6,236.45,2.1754]
[1732116197246,2.1105,236.63,236.48,19.75074134]
[1732116197459,19.75074134,236.68,236.48,19.75074134]
[1732116197946,19.75074134,236.73,236.52,19.75074134]
[1732116199352,2.1103,236.66,236.52,19.75074134]
[1732116200246,19.75074134,236.73,236.52,19.75074134]
[1732116200843,284.8488467,237.08,236.61,19.75074134]
[1732116200844,10.5375,237.0,236.61,19.75074134]
[1732116201154,19.75074134,236.85,236.65,19.75074134]
[1732116201350,2.1093,236.77,236.65,19.75074134]
[1732116201848,19.75074134,236.85,236.65,21.87836456]
[1732116202047,2.1092,236.78,236.65,21.87836456]
[1732116202847,2.1092,236.78,236.66,4.65351591]
[1732116203247,2.1092,236.78,236.65,21.87836456]
[1732116204548,19.75074134,236.85,236.65,2.12762322]
[1732116204753,0.9758,236.87,236.62,6.4751]
[1732116204754,19.75074134,236.81,236.62,6.4751]
[1732116205250,19.75074134,236.81,236.62,8.54028796]
[1732116205554,0.9758,236.87,236.62,8.54028796]
[1732116205555,19.75074134,236.77,236.62,8.54028796]
[1732116205947,19.75074134,236.77,236.62,6.4751]
[1732116206658,2.1102,236.67,236.62,6.4751]
[1732116206853,19.75074134,236.73,236.62,2.2009]
[1732116207053,19.75074134,236.69,236.55,6.4591]
[1732116207760,19.75074134,236.69,236.55,4.3408]
[1732116208552,2.1104,236.65,236.55,4.3408]
[1732116208750,0.9881,236.75,236.56,19.75074134]
[1732116208960,0.9881,236.75,236.56,21.87191028]
[1732116209254,19.75074134,236.77,236.6,19.75074134]
[1732116209448,19.75074134,236.77,236.56,19.75074134]
[1732116209649,19.75074134,236.77,236.56,21.89302064]
[1732116209853,19.75074134,236.77,236.56,19.75074134]
[1732116210049,19.75074134,236.73,236.56,19.75074134]
[1732116210358,19.75074134,236.73,236.55,10.20119535]
[1732116210554,19.75074134,236.73,236.55,4.3408]
[1732116210759,0.9881,236.72,236.55,4.3408]
[1732116210958,0.9881,236.72,236.55,2.1741]
[1732116210959,19.75074134,236.69,236.55,2.1741]
[1732116211153,19.75074134,236.65,236.52,2.1187]
[1732116211455,19.75074134,236.69,236.52,2.1187]
[1732116211756,2.1108,236.61,236.52,2.1187]
[1732116211958,19.75074134,236.69,236.52,2.1187]
[1732116213962,2.1109,236.59,236.52,2.1187]
[1732116215558,19.75074134,236.65,236.49,5.86039535]
[1732116215856,19.75074134,236.61,236.47,2.0916]
[1732116216564,2.1113,236.54,236.47,2.0916]
[1732116216764,19.75074134,236.61,236.46,0.64048]
[1732116217264,3.24,236.63,236.46,0.64048]
[1732116217265,19.75074134,236.57,236.46,0.64048]
[1732116217665,2.1114,236.54,236.46,0.64048]
[1732116217866,19.75074134,236.57,236.46,0.64048]
[1732116218065,0.9883,236.6,236.46,0.64048]
[1732116218959,3.24,236.63,236.46,0.64048]
[1732116219265,19.75074134,236.65,236.46,0.64048]
[1732116219465,2.1112,236.56,236.46,0.64048]
[1732116219664,19.75074134,236.66,236.46,0.64048]
[1732116220266,2.1112,236.56,236.46,0.64048]
[1732116220465,3.24,236.68,236.46,0.64048]
[1732116220466,19.75074134,236.62,236.46,0.64048]
[1732116220678,19.75074134,236.58,236.47,3.24]
[1732116221170,19.75074134,236.62,236.47,3.24]
[1732116221873,2.1115,236.53,236.47,3.24]
[1732116222266,2.1111,236.57,236.47,3.24]
[1732116222563,19.75074134,236.66,236.47,3.24]
[1732116223362,20.73904134,236.7,236.49,19.75074134]
[1732116224365,20.73904134,236.7,236.5,10.50743896]
[1732116224670,20.73904134,236.7,236.49,43.19232274]
[1732116224869,20.73904134,236.7,236.49,19.75074134]
[1732116225069,20.73904134,236.7,236.49,25.61113669]
[1732116225272,20.73904134,236.7,236.5,3.24]
[1732116226168,20.73904134,236.7,236.49,5.86039535]
[1732116226369,19.75074134,236.62,236.5,3.24]
[1732116226568,19.75074134,236.62,236.49,3.24]
[1732116227171,2.1116,236.51,236.49,3.24]
[1732116227566,19.75074134,236.62,236.49,3.24]
[1732116227771,2.1115,236.52,236.41,27.77523669]
[1732116227968,2.1115,236.52,236.42,7.88779954]
[1732116228272,19.75074134,236.62,236.43,5.86039535]
[1732116228469,2.1114,236.53,236.43,5.86039535]
[1732116228674,19.75074134,236.62,236.43,10.50804505]
[1732116228976,19.75074134,236.62,236.45,19.75074134]
[1732116229167,19.75074134,236.66,236.45,21.88206875]
[1732116229367,19.75074134,236.66,236.45,27.7424641]
[1732116229574,19.75074134,236.66,236.46,6.82046984]
[1732116229879,0.9883,236.7,236.49,19.75074134]
[1732116229880,20.73904134,236.7,236.49,19.75074134]
[1732116230073,2.1104,236.64,236.5,3.24]
[1732116230379,20.73904134,236.7,236.5,3.24]
[1732116230574,20.73904134,236.7,236.51,2.1015]
[1732116231075,20.73904134,236.7,236.52,2.135]
[1732116231270,2.1104,236.65,236.52,2.135]
[1732116231475,20.73904134,236.7,236.52,2.135]
[1732116231770,2.1107,236.62,236.52,2.135]
[1732116231973,20.73904134,236.7,236.52,2.135]
[1732116232779,2.1107,236.61,236.52,2.135]
[1732116234174,20.73904134,236.7,236.52,2.135]
[1732116234476,19.75074134,236.66,236.53,3.24]
[1732116234877,2.1108,236.6,236.53,3.24]
[1732116235275,2.1108,236.61,236.53,3.24]
[1732116236370,2.1109,236.59,236.53,3.24]
[1732116236575,19.75074134,236.66,236.52,2.135]
[1732116236782,19.75074134,236.66,236.53,3.24]
[1732116236975,2.1111,236.57,236.53,3.24]
[1732116237278,19.75074134,236.66,236.53,3.24]
[1732116239284,2.111,236.58,236.53,3.24]
[1732116239474,0.9883,236.7,236.51,5.86039535]
[1732116239475,19.75074134,236.62,236.51,5.86039535]
[1732116239779,19.75074134,236.62,236.5,3.24]
[1732116239980,2.1111,236.57,236.5,3.24]
[1732116240184,19.75074134,236.62,236.5,9.10039535]
[1732116240377,2.1111,236.57,236.51,4.658637]
[1732116240578,19.75074134,236.62,236.5,9.10039535]
[1732116240774,19.75074134,236.62,236.5,3.24]
[1732116241278,19.75074134,236.62,236.5,26.6815814]
[1732116241477,2.1111,236.57,236.51,4.66070942]